[Event "Titled Tuesday Blitz July 11 Late 2023"]
[White "Grinev, Valeriy"]
[Black "Fominykh, Maria"]
[WhiteFideId "14117517"]
[BlackFideId "4142411"]
[WhiteElo "2583"]
[BlackElo "2302"]
[Result "1-0"]
[Round "1"]
[TimeControl "180+2"]
[Date "2023.07.11"]
[WhiteClock "0:02:25"]
[BlackClock "0:00:00"]
[Board "140"]

1. d4 {[%clk 0:02:59]}  Nf6 {[%clk 0:00:35]} 2. c4 {[%clk 0:02:57]}  g6 {[%clk 0:00:35]} 3. Nc3 {[%clk 0:02:57]}  Bg7 {[%clk 0:00:35]} 4. e4 {[%clk 0:02:57]}  d6 {[%clk 0:00:35]} 5. Nge2 {[%clk 0:02:57]}  O-O {[%clk 0:00:34]} 6. Ng3 {[%clk 0:02:56]}  e5 {[%clk 0:00:34]} 7. d5 {[%clk 0:02:56]}  a5 {[%clk 0:00:33]} 8. h4 {[%clk 0:02:56]}  h5 {[%clk 0:00:31]} 9. Bg5 {[%clk 0:02:55]}  Qe8 {[%clk 0:00:30]} 10. Be2 {[%clk 0:02:54]}  Na6 {[%clk 0:00:26]} 11. Qd2 {[%clk 0:02:54]}  Kh7 {[%clk 0:00:18]} 12. f3 {[%clk 0:02:54]}  Nc5 {[%clk 0:00:17]} 13. Nf1 {[%clk 0:02:52]}  Ng8 {[%clk 0:00:17]} 14. O-O-O {[%clk 0:02:50]}  f6 {[%clk 0:00:17]} 15. Be3 {[%clk 0:02:49]}  Bh6 {[%clk 0:00:16]} 16. g4 {[%clk 0:02:48]}  Bd7 {[%clk 0:00:12]} 17. Ng3 {[%clk 0:02:44]}  c6 {[%clk 0:00:09]} 18. gxh5 {[%clk 0:02:42]}  gxh5 {[%clk 0:00:09]} 19. Kb1 {[%clk 0:02:40]}  cxd5 {[%clk 0:00:09]} 20. Nxd5 {[%clk 0:02:39]}  Be6 {[%clk 0:00:07]} 21. Bf1 {[%clk 0:02:38]}  Bxe3 {[%clk 0:00:06]} 22. Qxe3 {[%clk 0:02:38]}  Bxd5 {[%clk 0:00:07]} 23. cxd5 {[%clk 0:02:37]}  b5 {[%clk 0:00:06]} 24. Nf5 {[%clk 0:02:37]}  b4 {[%clk 0:00:05]} 25. Rg1 {[%clk 0:02:36]}  Rf7 {[%clk 0:00:05]} 26. Nxd6 {[%clk 0:02:29]}  Qf8 {[%clk 0:00:02]} 27. Nxf7 {[%clk 0:02:27]}  Qxf7 {[%clk 0:00:03]} 28. Qxc5 {[%clk 0:02:26]}  Ne7 {[%clk 0:00:00]} 29. Bh3 {[%clk 0:02:25]} 1-0


[Site "https://www.chess.com"]

[Event "Titled Tuesday Blitz July 11 Late 2023"]
[White "Leon Oquendo, Jorge"]
[Black "Freile Martin, Javier"]
[WhiteFideId "3514803"]
[BlackFideId "3600165"]
[WhiteElo "2577"]
[BlackElo "2291"]
[Result "1-0"]
[Round "1"]
[TimeControl "180+2"]
[Date "2023.07.11"]
[WhiteClock "0:00:17"]
[BlackClock "0:00:05"]
[Board "142"]

1. d4 {[%clk 0:02:59]}  Nf6 {[%clk 0:02:59]} 2. c4 {[%clk 0:02:59]}  g6 {[%clk 0:02:58]} 3. Nc3 {[%clk 0:02:58]}  Bg7 {[%clk 0:02:58]} 4. e4 {[%clk 0:02:59]}  d6 {[%clk 0:02:58]} 5. Be2 {[%clk 0:02:59]}  O-O {[%clk 0:02:58]} 6. Be3 {[%clk 0:02:59]}  Na6 {[%clk 0:02:57]} 7. h4 {[%clk 0:02:58]}  e5 {[%clk 0:02:55]} 8. d5 {[%clk 0:02:57]}  Nc5 {[%clk 0:02:51]} 9. Qc2 {[%clk 0:02:56]}  h5 {[%clk 0:02:50]} 10. O-O-O {[%clk 0:02:53]}  a5 {[%clk 0:02:49]} 11. f3 {[%clk 0:02:46]}  Bd7 {[%clk 0:02:46]} 12. Nh3 {[%clk 0:02:42]}  c6 {[%clk 0:02:45]} 13. dxc6 {[%clk 0:02:40]}  bxc6 {[%clk 0:02:40]} 14. Rxd6 {[%clk 0:02:38]}  Ne6 {[%clk 0:02:31]} 15. Rhd1 {[%clk 0:02:36]}  Qc7 {[%clk 0:02:30]} 16. R6d2 {[%clk 0:02:21]}  Rfb8 {[%clk 0:02:27]} 17. Ng5 {[%clk 0:02:20]}  Nd4 {[%clk 0:02:24]} 18. Bxd4 {[%clk 0:02:20]}  exd4 {[%clk 0:02:24]} 19. Rxd4 {[%clk 0:02:21]}  Be8 {[%clk 0:02:14]} 20. Qd2 {[%clk 0:02:00]}  a4 {[%clk 0:02:12]} 21. f4 {[%clk 0:01:57]}  a3 {[%clk 0:02:10]} 22. b3 {[%clk 0:01:57]}  Qa5 {[%clk 0:01:59]} 23. e5 {[%clk 0:01:54]}  Nh7 {[%clk 0:01:46]} 24. Nxh7 {[%clk 0:01:53]}  Kxh7 {[%clk 0:01:46]} 25. Ne4 {[%clk 0:01:48]}  Qc7 {[%clk 0:01:38]} 26. c5 {[%clk 0:01:40]}  Kh8 {[%clk 0:01:22]} 27. Bc4 {[%clk 0:01:39]}  Qe7 {[%clk 0:01:15]} 28. g3 {[%clk 0:01:38]}  Ra7 {[%clk 0:01:11]} 29. Nd6 {[%clk 0:01:36]}  Qf8 {[%clk 0:00:51]} 30. Kc2 {[%clk 0:01:31]}  Re7 {[%clk 0:00:47]} 31. Ne4 {[%clk 0:01:22]}  f6 {[%clk 0:00:26]} 32. exf6 {[%clk 0:01:22]}  Bxf6 {[%clk 0:00:26]} 33. Nxf6 {[%clk 0:01:22]}  Qxf6 {[%clk 0:00:26]} 34. Qc3 {[%clk 0:01:23]}  Kh7 {[%clk 0:00:25]} 35. Rd6 {[%clk 0:01:06]}  Qf5+ {[%clk 0:00:23]} 36. Bd3 {[%clk 0:01:06]}  Qg4 {[%clk 0:00:21]} 37. Rd2 {[%clk 0:01:01]}  Qxg3 {[%clk 0:00:20]} 38. f5 {[%clk 0:01:01]}  Kh6 {[%clk 0:00:15]} 39. fxg6 {[%clk 0:00:58]}  Rg7 {[%clk 0:00:14]} 40. Qd4 {[%clk 0:00:54]}  Bxg6 {[%clk 0:00:10]} 41. Bxg6 {[%clk 0:00:52]}  Rxg6 {[%clk 0:00:10]} 42. Re2 {[%clk 0:00:46]}  Rg8 {[%clk 0:00:09]} 43. Qd2+ {[%clk 0:00:28]}  Kh7 {[%clk 0:00:08]} 44. Re7+ {[%clk 0:00:19]}  R8g7 {[%clk 0:00:06]} 45. Rxg7+ {[%clk 0:00:19]}  Rxg7 {[%clk 0:00:06]} 46. Rh6+ {[%clk 0:00:16]}  Kg8 {[%clk 0:00:05]} 47. Qd8+ {[%clk 0:00:16]}  Kf7 {[%clk 0:00:05]} 48. Rf6# {[%clk 0:00:17]} 1-0


[Site "https://www.chess.com"]

[Event "Titled Tuesday Blitz July 11 Late 2023"]
[White "Antonio, Jorge Carlos"]
[Black "Kirillov, Dmitry"]
[WhiteFideId "113190"]
[BlackFideId "34180572"]
[WhiteElo "2285"]
[BlackElo "2575"]
[Result "1-0"]
[Round "1"]
[TimeControl "180+2"]
[Date "2023.07.11"]
[WhiteClock "0:01:50"]
[BlackClock "0:00:03"]
[Board "143"]

1. d4 {[%clk 0:03:00]}  Nf6 {[%clk 0:02:58]} 2. Nf3 {[%clk 0:02:59]}  e6 {[%clk 0:02:53]} 3. Bf4 {[%clk 0:02:58]}  d5 {[%clk 0:02:47]} 4. e3 {[%clk 0:02:57]}  Bd6 {[%clk 0:02:47]} 5. Ne5 {[%clk 0:02:55]}  O-O {[%clk 0:02:43]} 6. Bd3 {[%clk 0:02:54]}  c5 {[%clk 0:02:42]} 7. c3 {[%clk 0:02:54]}  Nc6 {[%clk 0:02:43]} 8. Nd2 {[%clk 0:02:53]}  Qc7 {[%clk 0:02:43]} 9. Ndf3 {[%clk 0:02:52]}  b6 {[%clk 0:02:32]} 10. O-O {[%clk 0:02:48]}  Bb7 {[%clk 0:02:32]} 11. Rc1 {[%clk 0:02:40]}  Rad8 {[%clk 0:02:19]} 12. Bg3 {[%clk 0:02:37]}  h6 {[%clk 0:02:15]} 13. Nxc6 {[%clk 0:02:36]}  Bxc6 {[%clk 0:02:11]} 14. Bxd6 {[%clk 0:02:35]}  Qxd6 {[%clk 0:02:08]} 15. Ne5 {[%clk 0:02:36]}  Bb7 {[%clk 0:01:51]} 16. f4 {[%clk 0:02:35]}  Ne4 {[%clk 0:01:43]} 17. Rf3 {[%clk 0:02:28]}  f6 {[%clk 0:01:39]} 18. Ng6 {[%clk 0:02:24]}  Rf7 {[%clk 0:01:39]} 19. g3 {[%clk 0:02:22]}  Kh7 {[%clk 0:01:36]} 20. Nh4 {[%clk 0:02:21]}  f5 {[%clk 0:01:04]} 21. Rf1 {[%clk 0:02:17]}  Rg8 {[%clk 0:00:53]} 22. Nf3 {[%clk 0:02:17]}  g5 {[%clk 0:00:47]} 23. Bxe4 {[%clk 0:02:15]}  dxe4 {[%clk 0:00:42]} 24. Ne5 {[%clk 0:02:15]}  Rf6 {[%clk 0:00:41]} 25. Kf2 {[%clk 0:02:11]}  Ba6 {[%clk 0:00:31]} 26. Rg1 {[%clk 0:02:10]}  g4 {[%clk 0:00:31]} 27. Rh1 {[%clk 0:02:08]}  h5 {[%clk 0:00:31]} 28. h3 {[%clk 0:02:08]}  Rh6 {[%clk 0:00:29]} 29. hxg4 {[%clk 0:02:06]}  hxg4 {[%clk 0:00:19]} 30. Rxh6+ {[%clk 0:02:04]}  Kxh6 {[%clk 0:00:20]} 31. Qh1+ {[%clk 0:02:01]}  Kg7 {[%clk 0:00:20]} 32. Qh5 {[%clk 0:02:00]}  Qe7 {[%clk 0:00:11]} 33. Qg6+ {[%clk 0:01:57]}  Kf8 {[%clk 0:00:10]} 34. Qh6+ {[%clk 0:01:54]}  Ke8 {[%clk 0:00:09]} 35. Qh5+ {[%clk 0:01:51]}  Kd8 {[%clk 0:00:03]} 36. Nc6+ {[%clk 0:01:50]} 1-0


[Site "https://www.chess.com"]

[Event "Titled Tuesday Blitz July 11 Late 2023"]
[White "Marchesich, Giovanni"]
[Black "Kochiev, Ivan"]
[WhiteFideId "2824790"]
[BlackFideId "2917890"]
[WhiteElo "2260"]
[BlackElo "2566"]
[Result "1-0"]
[Round "1"]
[TimeControl "180+2"]
[Date "2023.07.11"]
[WhiteClock "0:02:11"]
[BlackClock "0:01:26"]
[Board "149"]

1. d4 {[%clk 0:02:59]}  Nf6 {[%clk 0:02:59]} 2. Nc3 {[%clk 0:02:59]}  d5 {[%clk 0:02:59]} 3. Bf4 {[%clk 0:02:59]}  a6 {[%clk 0:02:58]} 4. e3 {[%clk 0:02:59]}  Bf5 {[%clk 0:02:57]} 5. Bd3 {[%clk 0:02:59]}  Bxd3 {[%clk 0:02:56]} 6. Qxd3 {[%clk 0:03:00]}  e6 {[%clk 0:02:57]} 7. Nf3 {[%clk 0:02:59]}  c5 {[%clk 0:02:57]} 8. O-O {[%clk 0:02:58]}  Nc6 {[%clk 0:02:57]} 9. Ne5 {[%clk 0:02:58]}  Bd6 {[%clk 0:02:57]} 10. Bg3 {[%clk 0:02:58]}  Bxe5 {[%clk 0:02:55]} 11. dxe5 {[%clk 0:02:58]}  Nd7 {[%clk 0:02:56]} 12. f4 {[%clk 0:02:57]}  O-O {[%clk 0:02:46]} 13. Rad1 {[%clk 0:02:56]}  f6 {[%clk 0:02:46]} 14. Nxd5 {[%clk 0:02:53]}  exd5 {[%clk 0:02:44]} 15. Qxd5+ {[%clk 0:02:53]}  Kh8 {[%clk 0:02:44]} 16. Qxd7 {[%clk 0:02:52]}  Qb6 {[%clk 0:02:37]} 17. e6 {[%clk 0:02:32]}  Qxb2 {[%clk 0:02:05]} 18. f5 {[%clk 0:02:24]}  Qxc2 {[%clk 0:01:50]} 19. Qxb7 {[%clk 0:02:16]}  Ne5 {[%clk 0:01:27]} 20. e7 {[%clk 0:02:14]}  Rfe8 {[%clk 0:01:26]} 21. Qxa8 {[%clk 0:02:11]} 1-0


[Site "https://www.chess.com"]

[Event "Titled Tuesday Blitz July 11 Late 2023"]
[White "Shohat, Yotam"]
[Black "Abdi, Farzad"]
[WhiteFideId "2813955"]
[BlackFideId "2076829"]
[WhiteElo "2565"]
[BlackElo "2255"]
[Result "1-0"]
[Round "1"]
[TimeControl "180+2"]
[Date "2023.07.11"]
[WhiteClock "0:00:06"]
[BlackClock "0:00:12"]
[Board "150"]

1. e4 {[%clk 0:03:00]}  e6 {[%clk 0:02:57]} 2. d4 {[%clk 0:02:58]}  d5 {[%clk 0:02:58]} 3. Nc3 {[%clk 0:02:54]}  dxe4 {[%clk 0:02:57]} 4. Nxe4 {[%clk 0:02:54]}  Nd7 {[%clk 0:02:58]} 5. Nf3 {[%clk 0:02:49]}  Ngf6 {[%clk 0:02:58]} 6. Nxf6+ {[%clk 0:02:38]}  Nxf6 {[%clk 0:02:57]} 7. Bg5 {[%clk 0:02:39]}  Be7 {[%clk 0:02:55]} 8. Bd3 {[%clk 0:02:33]}  h6 {[%clk 0:02:55]} 9. Bh4 {[%clk 0:02:32]}  O-O {[%clk 0:02:55]} 10. Qe2 {[%clk 0:02:32]}  c5 {[%clk 0:02:47]} 11. dxc5 {[%clk 0:02:32]}  Qa5+ {[%clk 0:02:47]} 12. c3 {[%clk 0:02:32]}  Qxc5 {[%clk 0:02:47]} 13. O-O {[%clk 0:02:25]}  Rd8 {[%clk 0:02:31]} 14. Rad1 {[%clk 0:02:24]}  Bd7 {[%clk 0:02:27]} 15. Ne5 {[%clk 0:02:22]}  Ba4 {[%clk 0:02:22]} 16. b3 {[%clk 0:02:18]}  Bc6 {[%clk 0:02:19]} 17. c4 {[%clk 0:02:13]}  Rd4 {[%clk 0:02:15]} 18. Nxc6 {[%clk 0:01:56]}  bxc6 {[%clk 0:02:06]} 19. Bg3 {[%clk 0:01:34]}  Rad8 {[%clk 0:01:57]} 20. Bc2 {[%clk 0:01:33]}  a5 {[%clk 0:01:44]} 21. h3 {[%clk 0:01:23]}  a4 {[%clk 0:01:38]} 22. Rxd4 {[%clk 0:01:10]}  Rxd4 {[%clk 0:01:35]} 23. Be5 {[%clk 0:01:10]}  Rd7 {[%clk 0:01:32]} 24. Rd1 {[%clk 0:00:38]}  Rxd1+ {[%clk 0:01:17]} 25. Bxd1 {[%clk 0:00:39]}  a3 {[%clk 0:01:02]} 26. Bc3 {[%clk 0:00:38]}  Qf5 {[%clk 0:00:58]} 27. Bc2 {[%clk 0:00:36]}  Qf4 {[%clk 0:00:57]} 28. Qd2 {[%clk 0:00:29]}  Qh4 {[%clk 0:00:51]} 29. Qe3 {[%clk 0:00:09]}  c5 {[%clk 0:00:45]} 30. Qg3 {[%clk 0:00:05]}  Qxg3 {[%clk 0:00:43]} 31. fxg3 {[%clk 0:00:06]}  Bd6 {[%clk 0:00:42]} 32. Kf2 {[%clk 0:00:05]}  Nh5 {[%clk 0:00:42]} 33. g4 {[%clk 0:00:04]}  Nf4 {[%clk 0:00:37]} 34. Bd2 {[%clk 0:00:04]}  Kf8 {[%clk 0:00:20]} 35. Kf3 {[%clk 0:00:04]}  g5 {[%clk 0:00:18]} 36. Bc1 {[%clk 0:00:05]}  Ke7 {[%clk 0:00:10]} 37. g3 {[%clk 0:00:05]}  Ng6 {[%clk 0:00:10]} 38. Bxg6 {[%clk 0:00:05]}  fxg6 {[%clk 0:00:10]} 39. Bxa3 {[%clk 0:00:05]}  Kf6 {[%clk 0:00:10]} 40. Bb2+ {[%clk 0:00:06]}  e5 {[%clk 0:00:10]} 41. Ke4 {[%clk 0:00:06]}  Ke6 {[%clk 0:00:11]} 42. a4 {[%clk 0:00:06]}  Bc7 {[%clk 0:00:11]} 43. Bc3 {[%clk 0:00:07]}  Bb6 {[%clk 0:00:11]} 44. Bxe5 {[%clk 0:00:06]}  Ba5 {[%clk 0:00:11]} 45. Bg7 {[%clk 0:00:07]}  Bb4 {[%clk 0:00:12]} 46. Bxh6 {[%clk 0:00:07]}  Bc3 {[%clk 0:00:12]} 47. Bxg5 {[%clk 0:00:06]}  Bb4 {[%clk 0:00:12]} 48. Be3 {[%clk 0:00:06]} 1-0


[Site "https://www.chess.com"]

[Event "Titled Tuesday Blitz July 11 Late 2023"]
[White "Quirke, Jeffrey"]
[Black "Karttunen, Mika"]
[WhiteFideId "2013029"]
[BlackFideId "502081"]
[WhiteElo "2253"]
[BlackElo "2564"]
[Result "0-1"]
[Round "1"]
[TimeControl "180+2"]
[Date "2023.07.11"]
[WhiteClock "0:00:06"]
[BlackClock "0:00:38"]
[Board "151"]

1. e4 {[%clk 0:02:57]}  e5 {[%clk 0:02:58]} 2. Nf3 {[%clk 0:02:56]}  Nf6 {[%clk 0:02:59]} 3. Nxe5 {[%clk 0:02:52]}  d6 {[%clk 0:02:59]} 4. Nf3 {[%clk 0:02:51]}  Nxe4 {[%clk 0:02:59]} 5. Nc3 {[%clk 0:02:51]}  Nf6 {[%clk 0:02:58]} 6. d4 {[%clk 0:02:49]}  Be7 {[%clk 0:02:58]} 7. Bd3 {[%clk 0:02:49]}  O-O {[%clk 0:02:58]} 8. O-O {[%clk 0:02:49]}  Bg4 {[%clk 0:02:57]} 9. h3 {[%clk 0:02:49]}  Bh5 {[%clk 0:02:56]} 10. Ne4 {[%clk 0:02:37]}  Nxe4 {[%clk 0:02:52]} 11. Bxe4 {[%clk 0:02:37]}  d5 {[%clk 0:02:53]} 12. Bd3 {[%clk 0:02:34]}  Nd7 {[%clk 0:02:43]} 13. Bf4 {[%clk 0:02:31]}  Re8 {[%clk 0:02:35]} 14. Re1 {[%clk 0:02:31]}  Nf8 {[%clk 0:02:35]} 15. g4 {[%clk 0:02:28]}  Bg6 {[%clk 0:02:35]} 16. c3 {[%clk 0:02:22]}  Bxd3 {[%clk 0:02:30]} 17. Qxd3 {[%clk 0:02:21]}  Ne6 {[%clk 0:02:30]} 18. Bg3 {[%clk 0:02:21]}  Bd6 {[%clk 0:02:25]} 19. Bxd6 {[%clk 0:02:08]}  Qxd6 {[%clk 0:02:25]} 20. Ne5 {[%clk 0:02:06]}  f6 {[%clk 0:02:23]} 21. Nf3 {[%clk 0:02:01]}  Nf4 {[%clk 0:02:21]} 22. Qf1 {[%clk 0:02:00]}  Qb6 {[%clk 0:02:17]} 23. b3 {[%clk 0:01:54]}  Qa5 {[%clk 0:02:14]} 24. Rxe8+ {[%clk 0:01:35]}  Rxe8 {[%clk 0:02:13]} 25. Re1 {[%clk 0:01:36]}  Rf8 {[%clk 0:01:57]} 26. Re7 {[%clk 0:01:29]}  Qxc3 {[%clk 0:01:53]} 27. Re3 {[%clk 0:01:23]}  Qa5 {[%clk 0:01:33]} 28. a4 {[%clk 0:01:23]}  c6 {[%clk 0:01:33]} 29. Nh4 {[%clk 0:01:14]}  Qb4 {[%clk 0:01:24]} 30. Nf5 {[%clk 0:01:12]}  g6 {[%clk 0:01:21]} 31. Nh6+ {[%clk 0:01:07]}  Kg7 {[%clk 0:01:21]} 32. g5 {[%clk 0:00:54]}  fxg5 {[%clk 0:01:18]} 33. Ng4 {[%clk 0:00:53]}  h5 {[%clk 0:01:16]} 34. Ne5 {[%clk 0:00:41]}  Qxd4 {[%clk 0:01:10]} 35. Nd7 {[%clk 0:00:37]}  Rf7 {[%clk 0:01:08]} 36. Ne5 {[%clk 0:00:26]}  Rf5 {[%clk 0:01:06]} 37. Nf3 {[%clk 0:00:24]}  Qf6 {[%clk 0:00:52]} 38. Qc1 {[%clk 0:00:17]}  Nxh3+ {[%clk 0:00:46]} 39. Kh2 {[%clk 0:00:18]}  g4 {[%clk 0:00:44]} 40. Qc5 {[%clk 0:00:18]}  Rxf3 {[%clk 0:00:38]} 41. Re7+ {[%clk 0:00:06]}  Kh6 {[%clk 0:00:38]} 0-1


[Site "https://www.chess.com"]

[Event "Titled Tuesday Blitz July 11 Late 2023"]
[White "Siniauski, Artsiom"]
[Black "Alexikov, Alexander"]
[WhiteFideId "13512269"]
[BlackFideId "14103958"]
[WhiteElo "2564"]
[BlackElo "2251"]
[Result "1-0"]
[Round "1"]
[TimeControl "180+2"]
[Date "2023.07.11"]
[WhiteClock "0:00:24"]
[BlackClock "0:00:00"]
[Board "152"]

1. e4 {[%clk 0:02:54]}  c5 {[%clk 0:02:57]} 2. Nf3 {[%clk 0:02:54]}  d6 {[%clk 0:02:57]} 3. c3 {[%clk 0:02:54]}  Nf6 {[%clk 0:02:55]} 4. Be2 {[%clk 0:02:55]}  Nc6 {[%clk 0:02:53]} 5. d4 {[%clk 0:02:54]}  cxd4 {[%clk 0:02:51]} 6. cxd4 {[%clk 0:02:55]}  e6 {[%clk 0:02:51]} 7. Nc3 {[%clk 0:02:54]}  Be7 {[%clk 0:02:51]} 8. O-O {[%clk 0:02:54]}  O-O {[%clk 0:02:50]} 9. Bf4 {[%clk 0:02:50]}  d5 {[%clk 0:02:45]} 10. e5 {[%clk 0:02:48]}  Ne4 {[%clk 0:02:44]} 11. Rc1 {[%clk 0:02:49]}  Nxc3 {[%clk 0:02:37]} 12. Rxc3 {[%clk 0:02:48]}  Bd7 {[%clk 0:02:37]} 13. h3 {[%clk 0:02:47]}  Rc8 {[%clk 0:02:35]} 14. a3 {[%clk 0:02:44]}  Na5 {[%clk 0:02:24]} 15. Qc1 {[%clk 0:02:41]}  Rxc3 {[%clk 0:02:05]} 16. Qxc3 {[%clk 0:02:42]}  Qb6 {[%clk 0:02:04]} 17. b4 {[%clk 0:02:39]}  Nc4 {[%clk 0:02:00]} 18. Bg5 {[%clk 0:02:20]}  Bxg5 {[%clk 0:01:52]} 19. Nxg5 {[%clk 0:02:21]}  h6 {[%clk 0:01:51]} 20. Nf3 {[%clk 0:02:21]}  Rc8 {[%clk 0:01:50]} 21. Rc1 {[%clk 0:02:08]}  a5 {[%clk 0:01:31]} 22. Bd3 {[%clk 0:02:02]}  axb4 {[%clk 0:01:29]} 23. Qxb4 {[%clk 0:01:57]}  Qxb4 {[%clk 0:01:27]} 24. axb4 {[%clk 0:01:58]}  Ra8 {[%clk 0:01:21]} 25. Bxc4 {[%clk 0:01:56]}  Rc8 {[%clk 0:01:16]} 26. Nd2 {[%clk 0:01:51]}  b5 {[%clk 0:01:10]} 27. Nb3 {[%clk 0:01:46]}  bxc4 {[%clk 0:01:05]} 28. Nc5 {[%clk 0:01:46]}  Be8 {[%clk 0:00:58]} 29. Kf1 {[%clk 0:01:41]}  Ra8 {[%clk 0:00:57]} 30. Rc2 {[%clk 0:01:40]}  Bb5 {[%clk 0:00:55]} 31. Ke2 {[%clk 0:01:39]}  Ra3 {[%clk 0:00:51]} 32. Kd2 {[%clk 0:01:36]}  g5 {[%clk 0:00:51]} 33. Kc1 {[%clk 0:01:14]}  c3 {[%clk 0:00:48]} 34. Kb1 {[%clk 0:01:12]}  Bc4 {[%clk 0:00:46]} 35. g3 {[%clk 0:01:05]}  h5 {[%clk 0:00:44]} 36. g4 {[%clk 0:01:03]}  Kg7 {[%clk 0:00:44]} 37. f3 {[%clk 0:01:01]}  Kg6 {[%clk 0:00:42]} 38. Rg2 {[%clk 0:00:56]}  h4 {[%clk 0:00:40]} 39. Rf2 {[%clk 0:00:56]}  f6 {[%clk 0:00:32]} 40. exf6 {[%clk 0:00:55]}  Kxf6 {[%clk 0:00:31]} 41. Nd7+ {[%clk 0:00:52]}  Ke7 {[%clk 0:00:27]} 42. Ne5 {[%clk 0:00:53]}  Bb3 {[%clk 0:00:25]} 43. Rf1 {[%clk 0:00:42]}  Ra4 {[%clk 0:00:20]} 44. Rc1 {[%clk 0:00:36]}  c2+ {[%clk 0:00:13]} 45. Kb2 {[%clk 0:00:37]}  Bc4 {[%clk 0:00:06]} 46. Rxc2 {[%clk 0:00:26]}  Rxb4+ {[%clk 0:00:05]} 47. Kc1 {[%clk 0:00:26]}  Rb3 {[%clk 0:00:00]} 48. Kd2 {[%clk 0:00:24]} 1-0


[Site "https://www.chess.com"]

[Event "Titled Tuesday Blitz July 11 Late 2023"]
[White "Janaszak, Dawid"]
[Black "rionelG"]
[WhiteFideId "1119206"]
[WhiteElo "2559"]
[BlackElo "2244"]
[Result "0-1"]
[Round "1"]
[TimeControl "180+2"]
[Date "2023.07.11"]
[WhiteClock "0:00:35"]
[BlackClock "0:00:15"]
[Board "154"]

1. e4 {[%clk 0:02:59]}  c5 {[%clk 0:02:53]} 2. Nc3 {[%clk 0:02:59]}  d6 {[%clk 0:02:52]} 3. f4 {[%clk 0:02:59]}  a6 {[%clk 0:02:52]} 4. Nf3 {[%clk 0:02:59]}  Nf6 {[%clk 0:02:45]} 5. a4 {[%clk 0:02:45]}  Nc6 {[%clk 0:02:41]} 6. Bc4 {[%clk 0:02:45]}  e6 {[%clk 0:02:37]} 7. O-O {[%clk 0:02:42]}  Be7 {[%clk 0:02:37]} 8. Kh1 {[%clk 0:02:34]}  O-O {[%clk 0:02:35]} 9. e5 {[%clk 0:02:34]}  dxe5 {[%clk 0:02:01]} 10. fxe5 {[%clk 0:02:35]}  Nd7 {[%clk 0:02:02]} 11. Qe2 {[%clk 0:02:33]}  Qc7 {[%clk 0:02:01]} 12. Re1 {[%clk 0:02:33]}  Nd4 {[%clk 0:02:00]} 13. Qe4 {[%clk 0:02:30]}  Nxf3 {[%clk 0:01:54]} 14. gxf3 {[%clk 0:02:31]}  Nb6 {[%clk 0:01:34]} 15. Bd3 {[%clk 0:02:27]}  g6 {[%clk 0:01:34]} 16. a5 {[%clk 0:02:24]}  Nd5 {[%clk 0:01:27]} 17. Qg4 {[%clk 0:02:12]}  Nb4 {[%clk 0:01:17]} 18. Be4 {[%clk 0:02:03]}  Bd7 {[%clk 0:01:17]} 19. Nd1 {[%clk 0:01:53]}  Qxe5 {[%clk 0:01:07]} 20. d4 {[%clk 0:01:46]}  cxd4 {[%clk 0:00:53]} 21. Bf4 {[%clk 0:01:46]}  Qc5 {[%clk 0:00:49]} 22. c3 {[%clk 0:01:41]}  dxc3 {[%clk 0:00:44]} 23. bxc3 {[%clk 0:01:42]}  Nd5 {[%clk 0:00:40]} 24. Bh6 {[%clk 0:01:34]}  f5 {[%clk 0:00:37]} 25. Qg3 {[%clk 0:01:29]}  fxe4 {[%clk 0:00:35]} 26. Bxf8 {[%clk 0:01:27]}  Rxf8 {[%clk 0:00:35]} 27. fxe4 {[%clk 0:01:25]}  Bd6 {[%clk 0:00:35]} 28. Qg1 {[%clk 0:01:18]}  Bc6 {[%clk 0:00:13]} 29. Qd4 {[%clk 0:01:07]}  Nxc3 {[%clk 0:00:10]} 30. Qxc5 {[%clk 0:01:04]}  Bxc5 {[%clk 0:00:11]} 31. Nxc3 {[%clk 0:01:04]}  Bd4 {[%clk 0:00:11]} 32. Rac1 {[%clk 0:01:03]}  Rf3 {[%clk 0:00:10]} 33. Kg2 {[%clk 0:00:31]}  Rxc3 {[%clk 0:00:09]} 34. Rxc3 {[%clk 0:00:31]}  Bxc3 {[%clk 0:00:10]} 35. Re3 {[%clk 0:00:30]}  Bxa5 {[%clk 0:00:11]} 36. Kf3 {[%clk 0:00:31]}  Bb6 {[%clk 0:00:11]} 37. Rb3 {[%clk 0:00:31]}  Bc5 {[%clk 0:00:11]} 38. Rc3 {[%clk 0:00:32]}  Bb4 {[%clk 0:00:11]} 39. Rb3 {[%clk 0:00:32]}  a5 {[%clk 0:00:12]} 40. Ke3 {[%clk 0:00:33]}  Bc5+ {[%clk 0:00:11]} 41. Kd3 {[%clk 0:00:33]}  a4 {[%clk 0:00:11]} 42. Rc3 {[%clk 0:00:33]}  Bb4 {[%clk 0:00:11]} 43. Rc1 {[%clk 0:00:34]}  a3 {[%clk 0:00:12]} 44. Kc4 {[%clk 0:00:34]}  Bd6 {[%clk 0:00:12]} 45. Kb3 {[%clk 0:00:35]}  Bxh2 {[%clk 0:00:11]} 46. Kxa3 {[%clk 0:00:34]}  Bd6+ {[%clk 0:00:12]} 47. Kb3 {[%clk 0:00:33]}  Bxe4 {[%clk 0:00:13]} 48. Rc8+ {[%clk 0:00:33]}  Kg7 {[%clk 0:00:12]} 49. Rd8 {[%clk 0:00:34]}  Bd5+ {[%clk 0:00:12]} 50. Kc3 {[%clk 0:00:34]}  Be7 {[%clk 0:00:13]} 51. Rd7 {[%clk 0:00:34]}  Kf6 {[%clk 0:00:14]} 52. Kd3 {[%clk 0:00:35]}  h5 {[%clk 0:00:14]} 53. Ke3 {[%clk 0:00:35]}  h4 {[%clk 0:00:15]} 54. Kf4 {[%clk 0:00:36]}  h3 {[%clk 0:00:15]} 55. Rxb7 {[%clk 0:00:36]}  Bxb7 {[%clk 0:00:15]} 56. Kg3 {[%clk 0:00:37]}  Bd6+ {[%clk 0:00:15]} 57. Kxh3 {[%clk 0:00:37]}  Kf5 {[%clk 0:00:15]} 58. Kh4 {[%clk 0:00:35]}  Kf4 {[%clk 0:00:15]} 0-1


[Site "https://www.chess.com"]

[Event "Titled Tuesday Blitz July 11 Late 2023"]
[White "SicilianPanzer"]
[Black "Dobrikov, Marco"]
[BlackFideId "12950378"]
[WhiteElo "2243"]
[BlackElo "2559"]
[Result "1-0"]
[Round "1"]
[TimeControl "180+2"]
[Date "2023.07.11"]
[WhiteClock "0:01:31"]
[BlackClock "0:02:26"]
[Board "155"]

1. e4 {[%clk 0:02:59]}  e6 {[%clk 0:02:59]} 2. d4 {[%clk 0:02:58]}  d5 {[%clk 0:03:00]} 3. Nc3 {[%clk 0:02:57]}  Nf6 {[%clk 0:03:01]} 4. e5 {[%clk 0:02:57]}  Nfd7 {[%clk 0:03:01]} 5. f4 {[%clk 0:02:58]}  c5 {[%clk 0:03:02]} 6. Nf3 {[%clk 0:02:58]}  Nc6 {[%clk 0:03:02]} 7. Be3 {[%clk 0:02:58]}  b6 {[%clk 0:03:01]} 8. Qd2 {[%clk 0:02:39]}  a5 {[%clk 0:03:01]} 9. Bb5 {[%clk 0:02:36]}  Qc7 {[%clk 0:03:01]} 10. O-O {[%clk 0:02:31]}  Ba6 {[%clk 0:03:01]} 11. a4 {[%clk 0:02:27]}  Bxb5 {[%clk 0:03:01]} 12. Nxb5 {[%clk 0:02:24]}  Qb7 {[%clk 0:02:57]} 13. c4 {[%clk 0:01:54]}  dxc4 {[%clk 0:02:46]} 14. d5 {[%clk 0:01:54]}  Nb4 {[%clk 0:02:41]} 15. dxe6 {[%clk 0:01:43]}  fxe6 {[%clk 0:02:42]} 16. Ng5 {[%clk 0:01:35]}  O-O-O {[%clk 0:02:27]} 17. Nxe6 {[%clk 0:01:31]}  Re8 {[%clk 0:02:26]} 18. Nxf8 {[%clk 0:01:31]}  Rhxf8 {[%clk 0:02:27]} 19. Nd6+ {[%clk 0:01:31]}  Kb8 {[%clk 0:02:26]} 20. Nxb7 {[%clk 0:01:31]} 1-0


[Site "https://www.chess.com"]